bitfinex/quotes_ETHUSD_20240828
["timestamp","ask_amount","ask_price","bid_price","bid_amount"]
[1724829405315,4.05483,2466.2,2465.9,0.55]
[1724829405550,4.05483,2466.2,2465.9,2.24437659]
[1724829406758,6.38588,2466.4,2465.9,2.24437659]
[1724829406956,4.05491,2466.2,2465.7,1.25738249]
[1724829407164,4.05515,2466.0,2465.7,0.4065]
[1724829407464,4.05515,2466.0,2465.5,4.05583]
[1724829407631,8.11038,2466.0,2465.5,5.66210974]
[1724829407814,8.11038,2466.0,2465.6,0.4065]
[1724829407815,4.05515,2466.0,2465.6,0.4065]
[1724829408015,4.05548,2465.8,2465.6,0.4065]
[1724829408925,8.11044,2466.0,2465.4,0.4065]
[1724829409144,4.05515,2466.0,2465.6,0.4065]
[1724829409460,4.05492,2466.2,2465.6,4.46226]
[1724829409753,4.05492,2466.2,2465.7,1.96175995]
[1724829410055,4.05492,2466.2,2465.7,0.55]
[1724829410832,4.055,2466.1,2465.7,0.55]
[1724829412635,4.05492,2466.2,2465.7,0.55]
[1724829412845,8.10989,2466.2,2465.7,0.55]
[1724829413200,4.05499,2466.1,2465.7,0.55]
[1724829414841,4.05564,2465.7,2465.3,0.85088249]
[1724829415047,4.05564,2465.7,2465.2,3.85088249]
[1724829415249,8.15935841,2465.8,2465.3,3.52986635]
[1724829415566,8.15935841,2465.8,2465.3,1.48437788]
[1724829416070,4.05547,2465.8,2465.4,0.55]
[1724829417444,8.11105,2465.8,2465.4,0.55]
[1724829417847,4.05547,2465.8,2465.4,0.55]
[1724829418278,8.11103,2465.8,2465.4,0.55]
[1724829418444,4.05547,2465.8,2465.4,0.55]
[1724829419095,4.05533,2465.9,2465.4,5.83766404]
[1724829419408,4.05524,2466.0,2465.5,7.58552089]
[1724829419584,4.05524,2466.0,2465.6,0.55]
[1724829419791,6.55258841,2466.2,2465.6,0.55]
[1724829420801,6.55258841,2466.2,2465.7,4.05562]
[1724829420953,6.55258841,2466.2,2465.9,4.05525]
[1724829423200,8.15912841,2466.0,2465.5,0.85088249]
[1724829423405,4.10388841,2466.0,2465.4,4.05604]
[1724829423696,4.10388841,2466.0,2465.6,4.0558]
[1724829424098,6.35868,2466.1,2465.5,4.703334]
[1724829424436,6.35868,2466.1,2465.5,4.05596]
[1724829424613,6.35868,2466.1,2465.6,0.55]
[1724829424980,4.05524,2466.0,2465.6,0.55]
[1724829425285,4.05545,2465.9,2465.2,12.37006249]
[1724829425603,6.35916,2465.8,2465.3,0.55]
[1724829426510,2.3036,2465.8,2465.3,0.55]
[1724829426809,2.3036,2465.8,2465.4,4.99844123]
[1724829428509,2.369,2466.0,2465.5,4.60595]
[1724829428916,6.42419,2466.0,2465.5,4.60595]
[1724829430018,6.42419,2466.0,2465.6,0.07516602]
[1724829430571,2.369,2466.0,2465.6,4.13096602]
[1724829430798,6.42416,2466.0,2465.6,5.09890974]
[1724829430988,6.42416,2466.0,2465.6,1.04310974]
[1724829431414,6.42416,2466.0,2465.6,0.07516602]
[1724829433306,2.369,2466.0,2465.6,0.07516602]
[1724829433914,6.42415,2466.0,2465.6,0.07516602]
[1724829436731,4.05515,2466.0,2465.6,0.07516602]
[1724829436914,8.11128,2465.7,2465.6,0.07516602]
[1724829437299,4.10388841,2465.8,2464.9,6.35122]
[1724829437504,4.05605,2465.5,2465.0,6.10419701]
[1724829437720,4.05605,2465.5,2465.1,1.2455417]
[1724829437912,8.11212,2465.5,2465.1,1.2455417]
[1724829438225,6.37445,2465.5,2464.9,6.75772]
[1724829438526,10.43053,2465.5,2465.0,0.63532797]
[1724829438732,10.43052,2465.5,2465.1,1.18531284]
[1724829439028,4.05618,2465.4,2465.1,0.55]
[1724829439205,4.05618,2465.4,2465.0,0.55]
[1724829439698,6.53286,2465.1,2464.7,2.82417673]
[1724829439899,14.69422841,2464.8,2464.7,2.82417673]
[1724829440131,2.4197,2465.9,2464.7,2.82417673]
[1724829440310,2.4197,2465.3,2464.7,2.82417673]
[1724829440487,4.05688,2465.0,2464.7,2.82417673]
[1724829440693,6.47682,2464.8,2464.7,2.82417673]
[1724829441189,10.53394,2464.8,2464.7,2.82417673]
[1724829441616,2.3774,2465.1,2464.7,2.82417673]
[1724829441820,2.3774,2465.4,2464.8,0.68815867]
[1724829442019,2.3774,2465.4,2464.9,4.05691]
[1724829442531,6.43357,2465.4,2464.7,6.88145673]
[1724829442835,6.43357,2465.4,2464.8,0.55]
[1724829443039,6.43357,2465.4,2464.8,0.98465942]
[1724829443040,4.05647,2465.2,2464.8,0.98465942]
[1724829443335,6.43357,2465.4,2464.8,0.98465942]
[1724829443890,4.05569,2465.7,2464.8,1.06580008]
[1724829444204,2.4147,2466.0,2465.2,4.05637]
[1724829444401,4.05582,2465.6,2464.9,0.93899768]
[1724829444618,4.05582,2465.6,2465.0,0.33317383]
[1724829444812,2.2507,2465.6,2464.7,3.23067673]
[1724829445094,4.05614,2465.4,2465.1,0.06982851]
[1724829445293,4.05614,2465.4,2464.7,3.23067673]
[1724829445504,4.0563,2465.3,2465.2,0.0693448]
[1724829445724,6.54183,2465.2,2464.7,3.23067673]
[1724829445992,6.54183,2465.2,2464.7,2.3677949]
[1724829446192,2.4892,2465.4,2464.5,0.85082382]
[1724829446426,6.5466,2464.7,2464.5,0.85082382]
[1724829447330,2.4892,2464.7,2464.5,0.85082382]
[1724829447627,4.05703,2464.9,2464.5,0.85082382]
[1724829447926,2.4735,2465.0,2464.5,0.85082382]
[1724829448137,6.53029,2465.0,2464.5,0.85082382]
[1724829448432,6.53955,2465.3,2464.5,4.95471223]
[1724829448608,6.53955,2465.3,2464.6,0.55]
[1724829449005,4.05674,2465.1,2464.6,0.55]
[1724829449317,4.05679,2465.0,2464.6,0.55]
[1724829449514,6.36935,2464.6,2464.5,0.85082382]
[1724829449890,2.3119,2464.6,2464.5,0.85082382]
[1724829450297,6.36935,2464.6,2464.5,0.85082382]
[1724829450550,14.48425,2464.6,2464.5,0.85082382]
[1724829450763,17.48425,2464.6,2464.5,0.85082382]
[1724829450900,19.94306384,2464.6,2464.5,0.85082382]
[1724829451099,12.17283,2464.5,2464.4,1.27623573]
[1724829451342,25.79342841,2464.5,2464.4,5.73e-06]
[1724829451639,10.57006,2464.4,2464.3,1.75676944]
[1724829451801,3.95778,2464.4,2464.3,1.75676944]
[1724829452008,14.57394841,2464.4,2464.3,1.75676944]
[1724829452208,18.63172841,2464.4,2464.3,1.75676944]
[1724829452415,20.49490125,2464.4,2464.3,1.75676944]
[1724829452642,4.05752,2464.6,2464.3,1.75676944]
[1724829453308,6.54378841,2464.8,2464.3,1.75676944]
[1724829453528,4.05778,2464.4,2464.3,1.75676944]
[1724829454641,8.11474,2464.7,2464.3,1.75676944]
[1724829454844,8.11473,2464.7,2464.3,1.75676944]
[1724829455150,5.1533609,2464.7,2464.3,1.75676944]
[1724829455439,2.4399,2464.8,2464.3,0.05512179]
[1724829455653,2.4399,2464.8,2464.3,4.11299179]
[1724829456211,4.05671,2465.1,2464.4,4.05766]
[1724829456627,4.991231,2465.1,2464.4,4.05766]
[1724829456831,4.991231,2465.1,2464.5,4.05759]
[1724829457060,4.05671,2465.1,2464.5,4.05748]
[1724829458105,2.2885,2465.2,2464.3,0.05512179]
[1724829458106,4.05718,2464.8,2464.3,0.05512179]
[1724829458322,4.462898,2464.8,2464.3,0.05512179]
[1724829459169,4.05688,2465.0,2464.3,4.1940762]
[1724829459318,6.34509,2465.2,2464.5,4.05759]
[1724829459521,4.05691,2465.0,2464.4,0.55]
[1724829459748,4.05691,2465.0,2464.4,4.60777]
[1724829460126,4.05691,2465.0,2464.5,0.05953947]
[1724829460326,4.05668,2465.1,2464.5,4.11702947]
[1724829460547,8.11343,2465.1,2464.5,4.11702947]
[1724829460786,5.2009783,2465.1,2464.5,0.05953947]
[1724829461062,4.05714,2464.8,2464.3,4.11306179]
[1724829461227,4.868559,2464.8,2464.6,0.05953947]
[1724829461433,4.05729,2464.7,2464.3,0.05512179]
[1724829461746,0.811419,2464.8,2464.7,0.05953947]
[1724829461928,4.0573,2464.7,2464.3,0.05512179]
[1724829462670,8.11472,2464.7,2464.3,0.05512179]
[1724829462874,0.811472,2464.6,2464.3,0.05512179]
[1724829463031,4.0573,2464.7,2464.3,0.05512179]
[1724829463032,4.05762,2464.5,2464.3,0.05512179]
[1724829463768,8.11471,2464.7,2464.3,0.05512179]
[1724829463971,4.0573,2464.7,2464.3,0.05512179]
[1724829464147,4.05762,2464.5,2464.3,0.05512179]
[1724829465169,0.40573,2464.6,2464.3,0.05512179]
[1724829465357,4.0573,2464.7,2464.3,0.05512179]
[1724829466783,4.05746,2464.6,2464.3,0.05512179]
[1724829470176,10.59291,2464.7,2464.3,0.05512179]
[1724829470474,4.05713,2464.8,2464.3,4.11306179]
[1724829470689,0.93047867,2464.9,2464.3,4.11306179]
[1724829470985,4.05707,2464.9,2464.4,4.05778]
[1724829471341,4.05707,2464.9,2464.3,0.05512179]
[1724829471540,4.05746,2464.6,2464.3,0.05512179]
[1724829475146,4.05746,2464.6,2464.4,0.05989908]
[1724829475582,8.11522,2464.5,2464.4,0.05989908]
[1724829475795,4.05761,2464.5,2464.4,0.05989908]
[1724829475993,4.05761,2464.5,2464.3,0.05512179]
[1724829475994,4.05778,2464.4,2464.3,0.05512179]
[1724829476172,4.704851,2464.4,2464.3,0.05512179]
[1724829478405,4.0574,2464.7,2464.3,0.05512179]
[1724829478580,4.05748,2464.6,2464.3,0.05512179]
[1724829478758,4.0574,2464.7,2464.3,0.05512179]
[1724829479107,10.54014,2464.9,2464.3,4.11304179]
[1724829479407,0.12909952,2466.1,2464.8,4.10388841]
[1724829479604,0.12909952,2466.1,2465.1,4.10388841]
[1724829479605,4.05599,2465.5,2465.1,4.10388841]
[1724829479757,4.05574,2465.7,2465.1,4.10388841]
[1724829479956,4.05574,2465.7,2465.1,8.16038841]
[1724829480198,8.11147,2465.7,2465.1,8.16038841]
[1724829480356,4.05573,2465.7,2465.1,8.16038841]
[1724829480975,4.05582,2465.6,2465.1,4.10388841]
[1724829481173,4.05582,2465.6,2465.0,6.36339]
[1724829481390,5.107113,2465.7,2465.1,4.0566]
[1724829481597,4.05583,2465.6,2465.0,10.42008]
[1724829481793,4.05583,2465.6,2465.0,11.59004159]
[1724829482018,4.05573,2465.7,2465.1,8.16036841]
[1724829482205,6.4581,2465.9,2465.3,4.05627]
[1724829482378,11.15938,2465.9,2465.3,4.05627]
[1724829482585,7.10391,2465.9,2465.3,4.05627]
[1724829482907,11.15934,2465.9,2465.3,4.05627]
[1724829483270,8.75667,2465.9,2465.3,4.05627]
[1724829483475,4.70121,2465.9,2465.3,4.05627]
[1724829483673,4.70121,2465.9,2465.3,8.16015841]
[1724829483906,4.05515,2466.0,2465.4,4.05611]
[1724829484069,4.05515,2466.0,2465.4,4.60611]
[1724829484275,4.05515,2466.0,2465.3,8.16012841]
[1724829484505,0.405515,2465.9,2465.4,4.05608]
[1724829484707,0.405515,2465.9,2465.5,4.05595]
[1724829485009,0.405515,2465.9,2465.4,4.05603]
[1724829485375,0.405515,2465.9,2465.5,4.05596]
[1724829485712,6.33772,2466.2,2465.6,4.05571]
[1724829486007,6.33772,2466.2,2465.6,8.1114]
[1724829486175,6.33772,2466.2,2465.6,8.11141]
[1724829486381,0.633772,2466.1,2465.6,8.11141]
[1724829486616,0.633772,2466.1,2465.7,4.05562]
[1724829486806,2.407,2466.5,2465.7,4.05562]
[1724829486807,2.407,2466.5,2465.8,4.05545]
[1724829487123,4.05359,2467.0,2466.3,4.10388841]
[1724829487271,0.405359,2466.9,2466.4,2.2904]
[1724829487466,4.05337,2467.1,2466.5,4.10388841]
[1724829487664,2.2635,2467.3,2466.7,4.05385]
[1724829487866,0.22635,2467.2,2466.9,4.05362]
[1724829488083,4.05287,2467.4,2466.9,4.05362]
[1724829488325,4.05287,2467.4,2466.7,12.21160841]
[1724829488530,4.05287,2467.4,2466.7,8.15773841]
[1724829488531,0.810565,2467.3,2466.7,8.15773841]
[1724829488691,0.810565,2467.3,2466.7,12.21162841]
[1724829488895,0.810565,2467.3,2466.8,4.05377]
[1724829489101,0.4863435,2467.2,2466.7,8.15773841]
[1724829489297,0.4863435,2467.2,2466.7,4.05385]
[1724829489540,0.4863435,2467.2,2466.7,8.10775]
[1724829489838,0.4863435,2467.2,2466.7,4.05385]
[1724829489998,0.4863435,2467.2,2466.8,0.05903138]
[1724829490196,0.4863435,2467.2,2466.5,8.15811841]
[1724829490402,2.4195,2467.2,2466.6,0.05903138]
[1724829490718,4.05378,2466.9,2466.3,11.42462]
[1724829491017,4.05378,2466.9,2466.7,0.05903138]
[1724829491018,8.10766,2466.8,2466.7,0.05903138]
[1724829491227,8.513038,2466.8,2466.7,0.05903138]
[1724829491431,4.05423,2466.6,2466.0,9.6275]
[1724829491597,2.4195,2467.2,2466.4,4.0544]
[1724829491799,4.0535,2467.0,2466.4,4.0544]
[1724829492010,4.0535,2467.0,2466.2,4.0547]
[1724829492309,4.0535,2467.0,2466.2,8.1094]
[1724829492310,4.05385,2466.8,2466.2,8.1094]
[1724829492512,0.405385,2466.7,2466.3,0.55]
[1724829492694,0.405385,2466.7,2466.0,9.6275]
[1724829492695,4.05434,2466.5,2466.0,2.2575]
[1724829492895,10.46978,2466.7,2465.9,4.05519]
[1724829493128,1.046978,2466.6,2466.0,0.55]
[1724829493326,4.05442,2466.5,2466.0,0.55]
[1724829493532,4.0545,2466.4,2465.8,4.05534]
[1724829493811,4.05442,2466.5,2465.7,22.289]
[1724829493812,4.865552,2466.3,2465.7,7.37]
[1724829494008,4.05466,2466.3,2465.7,7.37]
[1724829497549,4.05466,2466.3,2465.8,4.05545]
[1724829498053,4.0544,2466.5,2465.9,4.10388841]
[1724829498353,1.046978,2466.6,2466.0,4.05498]
[1724829498512,6.41573,2466.7,2466.1,4.60498]
[1724829498857,6.41573,2466.7,2466.1,0.55]
[1724829499149,6.41573,2466.7,2466.1,4.60497]
[1724829499358,0.641573,2466.6,2466.1,0.55]
[1724829499915,0.641573,2466.6,2466.1,4.60485]
[1724829500491,0.641573,2466.6,2466.1,0.55]
[1724829500611,0.641573,2466.6,2465.8,4.05535]
[1724829500813,4.05468,2466.3,2465.8,4.05535]
[1724829501017,4.05468,2466.3,2465.6,6.35647]
[1724829501256,4.05484,2466.2,2465.6,6.35647]
[1724829501565,4.05484,2466.2,2465.4,8.15992841]
[1724829501566,0.405484,2466.1,2465.4,8.15992841]
[1724829501757,0.405484,2466.1,2465.6,4.0557]
[1724829502255,4.05455,2466.4,2465.6,8.15958841]
[1724829502438,2.483,2466.5,2465.6,4.0557]
[1724829502633,4.05453,2466.4,2465.6,4.0557]
[1724829502828,9.53733,2466.5,2465.8,4.05534]
[1724829503030,0.65868884,2466.4,2465.9,4.60531]
[1724829503434,0.65868884,2466.4,2465.9,0.55]
[1724829503635,0.65868884,2466.4,2465.9,4.60527]
[1724829503853,4.05421,2466.6,2465.9,0.55]
[1724829504055,8.10851,2466.6,2466.0,4.05512]
[1724829504257,4.05421,2466.6,2466.0,4.05512]
[1724829504668,2.3543,2466.2,2465.2,2.7836]
[1724829504740,2.3543,2466.2,2465.0,4.05672]
[1724829504741,4.05576,2465.7,2465.0,10.49045]
[1724829504937,4.866867,2465.7,2465.0,6.43376]
[1724829505137,4.866867,2465.7,2465.0,2.3771]
[1724829505443,4.866867,2465.7,2465.1,0.05450009]
[1724829505653,2.4307,2465.8,2465.2,4.05644]
[1724829505871,4.05506,2466.1,2465.3,4.05625]
[1724829505872,10.54078,2466.1,2465.3,4.05625]
[1724829506185,4.05575,2465.7,2465.3,0.05450009]
[1724829506326,6.48564,2466.1,2465.3,0.05450009]
[1724829506532,4.05543,2465.9,2465.2,4.05646]
[1724829506866,4.05543,2465.9,2465.3,8.11236]
[1724829507202,4.05543,2465.9,2465.4,0.55]
[1724829507731,4.05543,2465.9,2465.5,0.05450009]
[1724829508264,4.05543,2465.9,2465.1,11.42657]
[1724829508440,0.4703994,2465.8,2465.2,0.60549111]
[1724829508776,4.05543,2465.9,2465.2,0.68661379]
[1724829509068,6.48563,2466.1,2465.3,0.08111948]
[1724829509252,4.05516,2466.0,2465.4,0.55]
[1724829509439,4.05534,2465.9,2465.5,0.05556545]
[1724829509628,10.54073,2466.1,2465.5,0.05556545]
[1724829509903,4.0558,2465.6,2465.5,0.05556545]
[1724829510028,4.0558,2465.6,2465.1,7.37]
[1724829510229,4.0558,2465.6,2465.2,0.05557784]
[1724829510423,2.4738,2465.6,2465.2,0.05557784]
[1724829510624,4.0563,2465.3,2464.8,0.4065]
[1724829510850,4.0563,2465.3,2464.9,0.05557784]
[1724829511067,4.05626,2465.4,2464.9,0.05557784]
[1724829511345,6.52961,2465.6,2464.9,0.05557784]
[1724829511548,6.52961,2465.6,2464.9,5.53587462]
[1724829511973,6.52961,2465.6,2464.9,0.05557784]
[1724829511974,4.05627,2465.4,2464.9,0.05557784]
[1724829512355,6.52967,2465.6,2464.9,0.05557784]
[1724829512541,10.5856,2465.6,2464.9,4.11252784]
[1724829512742,4.05555,2465.8,2465.0,4.13783355]
[1724829513055,4.05555,2465.8,2465.1,4.60649]
[1724829513254,4.05555,2465.8,2465.2,0.05557784]
[1724829513461,4.05555,2465.8,2465.3,0.55]
[1724829513879,4.05555,2465.8,2465.4,0.05557784]
[1724829514375,4.05555,2465.8,2465.2,4.60645]
[1724829514581,4.0558,2465.6,2465.5,0.05557784]
[1724829514784,4.0558,2465.6,2464.8,6.82534]
[1724829514785,4.05612,2465.5,2464.8,6.82534]
[1724829515589,4.05615,2465.4,2464.8,6.82534]
[1724829515788,4.0558,2465.6,2464.9,1.969534]
[1724829516303,4.0558,2465.6,2465.0,4.05665]
[1724829516448,4.10388841,2465.7,2464.9,0.55]
[1724829516653,4.05642,2465.3,2464.9,0.55]
[1724829520050,4.05642,2465.3,2465.0,0.05557784]
[1724829520897,4.05603,2465.5,2465.0,0.05557784]
[1724829521280,4.05574,2465.7,2465.1,4.05657]
[1724829521498,4.05574,2465.7,2465.2,0.96121478]
[1724829521677,2.4153,2465.9,2465.3,2.45612457]
[1724829521992,4.05518,2466.0,2465.4,4.60606]
[1724829522192,4.05518,2466.0,2465.4,0.89734749]
[1724829522351,4.05518,2466.0,2465.5,0.05613551]
[1724829522990,4.05537,2465.9,2465.5,0.05613551]
[1724829523586,4.05564,2465.7,2465.5,0.05613551]
[1724829523889,4.05549,2465.8,2465.5,0.05613551]
[1724829524189,8.11108,2465.8,2465.5,0.05613551]
[1724829524887,8.11107,2465.8,2465.5,0.05613551]
[1724829525195,4.05564,2465.7,2465.5,0.05613551]
[1724829526392,4.0558,2465.6,2465.5,0.05613551]
[1724829526817,4.0558,2465.6,2465.3,2.375]
[1724829526957,4.0558,2465.6,2465.5,0.05619746]
[1724829527158,4.0558,2465.6,2465.3,2.375]
[1724829527356,4.0558,2465.6,2465.5,0.05619746]
[1724829527582,4.0558,2465.6,2465.3,2.375]
[1724829527859,4.0558,2465.6,2465.3,3.39015]
[1724829528079,4.05599,2465.5,2465.4,0.0562842]
[1724829528279,4.05519,2465.5,2465.4,0.0562842]
[1724829528558,4.05119,2465.5,2465.1,10.2127]
[1724829528785,4.05039,2465.5,2465.4,0.0562842]
[1724829528955,4.05039,2465.5,2465.2,0.55]
[1724829529192,4.05039,2465.5,2465.4,0.05630899]
[1724829529370,4.04559,2465.5,2465.2,0.55]
[1724829529701,4.05626,2465.4,2465.1,7.7765]
[1724829529944,4.05626,2465.4,2465.3,0.05637095]
[1724829530247,4.05626,2465.4,2465.0,0.4065]
[1724829530248,4.0531,2465.3,2465.0,0.4065]
[1724829530406,4.05581,2465.2,2464.8,7.37]
[1724829530604,4.05695,2464.9,2464.8,7.37]
[1724829530872,4.05597,2465.1,2464.6,2.451]
[1724829531001,8.1127,2465.1,2464.6,2.451]
[1724829531412,8.1127,2465.1,2464.7,0.4065]
[1724829532509,4.05597,2465.1,2464.7,0.4065]
[1724829532983,8.11271,2465.1,2464.7,1.503762]
[1724829533451,4.05742,2464.7,2464.3,0.05512179]
[1724829533666,8.16101841,2464.8,2464.3,0.05512179]
[1724829533958,4.05713,2464.8,2464.3,0.05512179]
[1724829534145,4.05731,2464.7,2464.3,0.05512179]
[1724829534351,4.05774,2464.5,2464.3,0.05512179]
[1724829535256,4.05774,2464.5,2464.4,0.05613545]
[1724829537760,4.05698,2464.9,2464.4,0.05613545]
[1724829537921,4.10388841,2464.8,2464.4,0.71421917]
[1724829538267,4.10388841,2465.0,2464.4,0.05613545]
[1724829538561,4.10388841,2465.2,2464.5,0.55]
[1724829538768,2.371,2465.4,2464.8,4.05709]
[1724829538769,4.05614,2465.4,2464.8,4.05709]
[1724829538963,10.58246841,2465.6,2464.9,1.198419]
[1724829539344,10.58246841,2465.6,2465.0,0.05613545]
[1724829539632,4.10388841,2465.4,2465.1,0.55]
[1724829539829,4.10388841,2465.4,2465.0,0.05613545]
[1724829540029,8.16019841,2465.3,2465.2,0.0564577]
[1724829540287,4.10388841,2465.3,2465.2,0.0564577]
[1724829540477,4.10388841,2465.3,2464.8,4.82730276]
[1724829540762,4.10388841,2465.3,2464.9,1.3644517]
[1724829541762,4.10388841,2465.5,2465.0,2.3381]
[1724829541993,4.10388841,2465.5,2465.1,1.33406145]
[1724829542257,4.10388841,2465.5,2465.1,5.44732267]
[1724829542965,4.10388841,2465.7,2465.1,5.52831746]
[1724829543178,4.10388841,2465.7,2465.2,0.78664175]
[1724829543333,4.10388841,2465.7,2465.3,0.55]
[1724829543532,4.10388841,2465.7,2465.3,0.60649489]
[1724829544126,4.05599,2465.5,2465.3,0.05649489]
[1724829544319,8.16001841,2465.4,2465.3,0.05649489]
[1724829544524,9.38161925,2465.4,2464.7,6.82086]
[1724829544754,4.10388841,2465.4,2465.3,0.05634617]
[1724829544960,4.10388841,2465.4,2464.8,0.55]
[1724829545261,8.16052841,2465.1,2464.6,0.4065]
[1724829545968,4.10388841,2464.7,2464.3,0.05512179]
[1724829546119,8.11414,2464.9,2464.3,4.52431397]
[1724829546120,4.05707,2464.9,2464.3,4.52431397]
[1724829546468,4.10388841,2464.9,2464.4,4.05774]
[1724829546760,4.10388841,2464.9,2464.4,4.9159684]
[1724829548668,4.10388841,2464.9,2464.5,2.4407]
[1724829548845,4.10388841,2465.4,2464.8,4.05709]
[1724829549046,4.10388841,2465.4,2464.9,5.09377851]
[1724829549559,4.10388841,2465.4,2464.9,5.012649]
[1724829549792,4.10388841,2465.2,2464.9,5.012649]
[1724829550266,2.4774,2465.5,2465.0,0.05501873]
[1724829550575,8.16051841,2465.1,2464.5,5.8472]
[1724829550865,4.10388841,2464.7,2464.5,0.4065]
[1724829551085,8.16096841,2464.9,2464.5,0.4065]
[1724829551230,8.16096841,2464.9,2464.3,0.46162179]
[1724829551429,8.16096841,2464.9,2464.3,1.10814897]
[1724829551693,8.16096841,2464.9,2464.3,5.16602897]
[1724829552466,8.16096841,2464.9,2464.4,0.9565]
[1724829553710,12.21803841,2464.9,2464.4,0.9565]
[1724829554066,8.16095841,2464.9,2464.4,0.9565]
[1724829554290,8.16095841,2464.9,2464.4,2.1691159]
[1724829554466,8.16094841,2464.9,2464.4,2.1691159]
[1724829555305,4.05746,2464.6,2464.4,0.4065]
[1724829555520,4.10388841,2464.5,2464.3,0.05512179]
[1724829556166,4.05746,2464.6,2464.3,0.05512179]
[1724829556374,4.10388841,2464.7,2464.3,1.20345897]
[1724829557098,8.16117841,2464.7,2464.3,1.20345897]
[1724829557893,4.10388841,2464.9,2464.3,5.26138897]
[1724829558096,4.05733,2464.7,2464.4,0.55]
[1724829558792,4.10388841,2464.7,2464.4,0.55]
[1724829560005,4.05715,2464.8,2464.4,0.55]
[1724829560006,8.11441,2464.8,2464.4,0.55]
[1724829560444,4.05731,2464.7,2464.4,0.55]
[1724829561260,4.05731,2464.7,2464.3,0.05512179]
[1724829561261,8.16162841,2464.5,2464.3,0.05512179]
[1724829561434,4.05778,2464.4,2464.3,0.05512179]
[1724829562713,4.05773,2464.5,2464.3,0.05512179]
[1724829562913,2.02006676,2467.0,2464.3,0.05512179]
[1724829562914,4.05702,2464.9,2464.3,4.11297179]
[1724829563149,8.1141,2464.9,2464.4,0.55]
[1724829563319,8.16090841,2464.9,2464.3,0.05512179]
[1724829563512,4.05729,2464.7,2464.3,0.05512179]
[1724829563719,4.05729,2464.7,2464.3,1.1078054]
[1724829564361,4.05778,2464.4,2464.3,0.05512179]
[1724829564948,8.11556,2464.4,2464.3,0.05512179]
[1724829565165,8.11556,2464.4,2464.3,0.1086287]
[1724829566241,4.05778,2464.4,2464.3,0.1086287]
[1724829567258,5.27971084,2464.4,2464.3,0.1086287]
[1724829567491,5.27971084,2464.4,2464.3,0.05512179]
[1724829567837,11.63029084,2464.4,2464.3,0.05512179]
[1724829569167,7.57251084,2464.4,2464.3,0.05512179]
[1724829569370,2.2928,2464.4,2464.3,0.05512179]
[1724829569572,8.16158841,2464.5,2464.3,0.05512179]
[1724829570080,10.52640841,2464.7,2464.4,0.05350691]
[1724829570241,4.10388841,2464.5,2464.4,0.05350691]
[1724829570741,10.52640841,2464.7,2464.4,0.05350691]
[1724829571138,14.58380841,2464.7,2464.4,0.05350691]
[1724829571341,10.52640841,2464.7,2464.4,0.05350691]
[1724829572041,4.10388841,2464.7,2464.4,0.05350691]
[1724829572774,8.16119841,2464.7,2464.4,0.05350691]
[1724829572977,8.16149841,2464.5,2464.4,0.05350691]
[1724829573779,4.05746,2464.6,2464.4,0.05350691]
[1724829574991,8.16149841,2464.5,2464.4,0.05350691]
[1724829575163,8.97764825,2464.5,2464.4,0.05350691]
[1724829575726,8.16149841,2464.5,2464.4,0.05350691]
[1724829575997,12.21910841,2464.5,2464.4,0.05350691]
[1724829577010,8.16122841,2464.7,2464.4,0.05350691]
[1724829577503,12.21861841,2464.7,2464.4,0.05350691]
[1724829577800,8.16122841,2464.7,2464.4,0.05350691]
[1724829578005,4.05748,2464.6,2464.4,0.05350691]
[1724829578297,12.21860841,2464.7,2464.4,0.05350691]
[1724829578486,4.05745,2464.6,2464.4,0.05350691]
[1724829579479,8.16122841,2464.7,2464.4,0.05350691]
[1724829579721,4.05747,2464.6,2464.4,0.05350691]
[1724829580914,8.16122841,2464.7,2464.4,0.05350691]
[1724829581473,4.05734,2464.7,2464.4,0.05350691]
[1724829582087,10.60599841,2464.5,2464.4,0.05350691]
[1724829583514,4.10388841,2464.5,2464.4,0.05350691]
[1724829583846,8.16149841,2464.5,2464.4,0.05350691]
[1724829584016,14.65100841,2464.5,2464.4,0.05350691]
[1724829584952,18.70861841,2464.5,2464.4,0.05350691]
[1724829585107,16.92760525,2464.5,2464.4,0.05350691]
[1724829585451,8.11556,2464.4,2464.3,0.05512179]
[1724829587964,4.10388841,2464.5,2464.3,0.05512179]
[1724829588247,8.16166841,2464.4,2464.3,0.05512179]
[1724829588541,12.21944841,2464.4,2464.3,0.05512179]
[1724829591453,16.27722841,2464.4,2464.3,0.05512179]
[1724829591653,15.21944841,2464.4,2464.3,0.05512179]
[1724829591960,19.27722841,2464.4,2464.3,0.05512179]
[1724829592274,23.81293014,2464.4,2464.3,0.05512179]
[1724829592649,19.75515014,2464.4,2464.3,0.05512179]
[1724829592848,23.81293014,2464.4,2464.3,0.05512179]
[1724829593077,19.75515014,2464.4,2464.3,0.05512179]
[1724829593384,13.45646,2464.4,2464.3,0.05512179]
[1724829593572,17.56034841,2464.4,2464.3,0.05512179]
[1724829595028,21.61812841,2464.4,2464.3,0.05512179]
[1724829595610,17.56034841,2464.4,2464.3,0.05512179]
[1724829595816,23.77993925,2464.4,2464.3,0.05512179]
[1724829596180,19.72215925,2464.4,2464.3,0.05512179]
[1724829596440,23.77993925,2464.4,2464.3,0.05512179]
[1724829596996,19.72215925,2464.4,2464.3,0.05512179]
[1724829597714,23.77993925,2464.4,2464.3,0.05512179]
[1724829597876,19.72215925,2464.4,2464.3,0.05512179]
[1724829598208,23.77993925,2464.4,2464.3,0.05512179]
[1724829599821,19.72215925,2464.4,2464.3,0.05512179]
[1724829600173,23.77993925,2464.4,2464.3,0.05512179]
[1724829600369,19.72215925,2464.4,2464.3,0.05512179]
[1724829600874,23.77993925,2464.4,2464.3,0.05512179]
[1724829602106,19.72215925,2464.4,2464.3,0.05512179]
[1724829602303,4.05778,2464.4,2464.3,0.05512179]
[1724829602523,4.05764,2464.5,2464.3,0.05512179]
[1724829602826,8.11556,2464.4,2464.3,0.05512179]
[1724829603004,4.05778,2464.4,2464.3,0.05512179]
[1724829604396,8.11541,2464.5,2464.3,0.05512179]